Cogmind - Beta 16 @@@ ROGUE MODE // 2026.01.11 @ 01:15:46 Player: leto Result: Core destroyed Performance ------------- Evolutions (5) 2500 Regions Visited (15) 3000 Robots Destroyed (129) 645 Value Destroyed (3060) 3060 Prototype IDs (21) 420 Alien Tech Used (0) 0 Bonus (832) 832 TOTAL SCORE: 10457 Bonus ------- Follower Combat Kills 232 Aligned with FarCom 300 Met Data Miner 300 Cogmind --------- Core Integrity 0/1000 Matter 292/300 Energy 84/100 System Corruption 2% Temperature Cool (0) Movement Core (50) Location -5/Upper Caves Parts ------- > --- POWER (1) -------- (None) > --- PROPULSION (5) --- (None) > --- UTILITY (9) ------ Advanced Sensor Array Improved Terrain Scan Processor Improved Transmission Jammer Advanced System Shield > --- WEAPON (2) ------- (None) > --- INVENTORY (5) ---- Improved Terrain Scanner Improved Utility Shielding Advanced Hacking Suite Trap Reconfigurator Peak State ------------ > --- POWER ------------ Micro Fission Core > --- PROPULSION ------- Cooled VTOL Module Cooled VTOL Module Cooled VTOL Module Cooled VTOL Module Field Propulsion Drive > --- UTILITY ---------- Advanced Sensor Array Advanced Terrain Scanner Advanced Terrain Scan Processor Improved Propulsion Shielding Improved Utility Shielding Advanced Hacking Suite Advanced Hacking Suite Improved System Shield Advanced System Shield > --- WEAPON ----------- Mini Grenade Launcher Impact Mace > --- INVENTORY -------- Micro Fission Core Advanced Sensor Array Advanced Hacking Suite Improved System Restoration Module Trap Reconfigurator [Rating: 85] Favorites ----------- Power Micro Nuclear Core Engine Ion Engine Power Core Micro Nuclear Core Propulsion Cooled VTOL Module Treads Light Treads Leg Improved Titanium Leg Wheel Wheel Flight Unit Cooled VTOL Module Utility System Shield Device Advanced Terrain Scanner Storage Huge Storage Unit Processor Advanced Terrain Scan Processor Hackware System Shield Protection Improved Propulsion Shielding Weapon Assault Rifle Energy Gun Medium Laser Ballistic Gun Assault Rifle Launcher Mini Grenade Launcher Special Weapon Enhanced Flamer Impact Weapon Impact Mace Special Melee Weapon Improved Datajack Build | -11 -10 -10 -10 -9 -8 -7 -7 -7 -6 -6 -6 -6 -5 -5 -5 ------- Run | Yrd Mat Min Exi Min Mat Fac Was Fac Fac Low Low Dat Pro Fac Upp Slots Evolved 10 | . . . . . 4 2 . . 2 . . . . 2 . Power . | . . . . . . . . . . . . . . . . Propulsion 3 | . . . . . 2 . . . . . . . . 1 . Utility 7 | . . . . . 2 2 . . 2 . . . . 1 . Weapon . | . . . . . . . . . . . . . . . . Parts Attached 136 | 6 7 4 1 5 46 26 3 8 9 2 . . . 18 1 Power 17 | 1 1 . . . 6 5 . 1 . . . . . 3 . Engine 11 | 1 1 . . . 6 3 . . . . . . . . . Core 6 | . . . . . . 2 . 1 . . . . . 3 . Reactor . | . . . . . . . . . . . . . . . . Propulsion 30 | 2 . 1 . . 14 8 1 . 2 . . . . 2 . Treads 10 | 2 . 1 . . 7 . . . . . . . . . . Leg 4 | . . . . . 4 . . . . . . . . . . Wheel 2 | . . . . . 2 . . . . . . . . . . Hover . | . . . . . . . . . . . . . . . . Flight 14 | . . . . . 1 8 1 . 2 . . . . 2 . Utility 62 | 1 5 2 1 2 12 11 2 4 7 2 . . . 12 1 Device 24 | . . 2 1 2 2 1 . 3 3 1 . . . 8 1 Storage 4 | 1 3 . . . . . . . . . . . . . . Processor 10 | . . . . . 3 2 1 . 1 1 . . . 2 . Hackware 11 | . . . . . . 6 . 1 3 . . . . 1 . Protection 13 | . 2 . . . 7 2 1 . . . . . . 1 . Artifact . | . . . . . . . . . . . . . . . . Weapon 27 | 2 1 1 . 3 14 2 . 3 . . . . . 1 . Energy Gun 9 | 1 1 . . . 7 . . . . . . . . . . Energy Cannon . | . . . . . . . . . . . . . . . . Ballistic Gun 7 | 1 . 1 . . 5 . . . . . . . . . . Ballistic Cannon . | . . . . . . . . . . . . . . . . Launcher 5 | . . . . 2 . 1 . 1 . . . . . 1 . Special Weapon 2 | . . . . 1 1 . . . . . . . . . . Impact Weapon 2 | . . . . . 1 . . 1 . . . . . . . Slashing Weapon . | . . . . . . . . . . . . . . . . Piercing Weapon . | . . . . . . . . . . . . . . . . Special Melee Weapon 2 | . . . . . . 1 . 1 . . . . . . . Unidentified Prototypes 9 | . . . 1 . 5 . 1 1 1 . . . . . . Parts Lost 44 | . 2 2 . 2 12 7 . . . . . . 3 15 1 Power 8 | . 1 . . . 3 1 . . . . . . . 3 . Propulsion 12 | . . 1 . 1 4 . . . . . . . 1 5 . Utility 13 | . 1 . . . 1 3 . . . . . . 1 6 1 Weapon 11 | . . 1 . 1 4 3 . . . . . . 1 1 . Highest Loss Streak 7 | . 2 2 . 1 5 3 . . . . . . 2 7 6 To Critical Strikes . | . . . . . . . . . . . . . . . . Average Backups 11 | 2 9 12 19 19 22 5 5 4 4 5 5 5 4 4 4 Power . | . . . . . 1 . 1 1 1 1 1 1 1 1 . Propulsion 2 | 1 3 3 3 3 6 1 . . . . . . . . . Utility 5 | . . 4 9 9 10 2 3 3 3 4 4 4 3 3 4 Weapon 2 | . 3 4 6 6 5 . . . . . . . . . . Tool/Special . | . . . . . . . . . . . . . . . . Unused Backups 23 | . 1 . . . 7 4 1 3 3 . . . . 3 1 Power 4 | . . . . . 1 1 . 1 1 . . . . . . Propulsion 5 | . 1 . . . 2 . 1 . . . . . . 1 . Utility 14 | . . . . . 4 3 . 2 2 . . . . 2 1 Weapon . | . . . . . . . . . . . . . . . . Tool/Special . | . . . . . . . . . . . . . . . . Average Slot Usage (%) 93 | . 96 99 64 93 96 96 92 98 99 100 100 93 92 84 21 Engine 6 | . 14 14 14 14 7 2 . . . . . . . . . Core 2 | . . . . . . 4 7 7 6 6 6 6 6 4 . Treads 10 | . 28 28 28 27 11 . . . . . . . . . . Leg 4 | . . . . . 20 . . . . . . . . . . Flight 12 | . . . . . . 29 30 30 25 26 26 26 20 20 . Device 7 | . . 13 7 13 5 2 . 6 9 12 13 13 6 10 7 Storage 6 | . 14 14 14 14 9 . . . . . . . . . . Processor 3 | . . . . . 4 5 6 . 4 12 13 13 13 5 5 Hackware 12 | . . . . . . 24 23 23 26 26 26 26 26 22 7 Protection 9 | . 11 . . . 16 11 15 14 10 . . . 5 9 . Energy Gun 2 | . 14 4 . . 5 2 . . . . . . . . . Ballistic Gun 7 | . 14 23 . 16 12 . . . . . . . . . . Launcher 1 | . . . . . . . . . 5 6 6 3 5 1 . Impact Weapon 2 | . . . . . . 6 7 7 5 6 6 3 6 4 . Peak Build Rating 85 | 6 8 10 16 14 46 52 49 53 72 68 68 68 68 85 23 Average Rating 39 | 4 7 8 8 11 35 46 45 45 63 67 68 62 63 69 20 On Entrance 36 | . 6 8 10 8 13 45 49 45 48 68 68 68 68 61 23 Avg Prop Armor Cover (%) 6 | . . . . . 13 . . . . . . . . 5 . Naked Turns . | . . . . . . . . . . . . . . . . Heaviest Build 107 | 14 92 92 86 92 107 96 14 16 16 12 12 12 13 16 2 Greatest Support 82 | 40 40 40 40 40 82 40 18 19 19 19 19 19 19 28 3 Greatest Overweight (x) 5 | 4 2 2 2 4 5 2 . 4 . . . . . 3 . Average Overweight (x) . | . . 2 2 2 1 . . . . . . . . . . Largest Inventory Capacity 25 | 8 25 25 25 25 25 25 5 5 5 5 5 5 5 5 5 Average Capacity 14 | 7 19 25 25 25 25 5 5 5 5 5 5 5 5 5 5 Most Carried 25 | 3 11 18 21 22 25 25 5 5 5 5 5 5 5 5 5 Average Carried 11 | 2 9 13 20 20 23 4 4 4 4 5 4 5 4 4 4 Final Capacity 25 | 8 25 25 25 25 25 5 5 5 5 5 5 5 5 5 5 Final Carried 25 | 3 10 18 21 22 25 5 5 5 5 5 5 5 5 5 4 Class Distribution -------------------- 31% | Mutant 23% | Hacker-Sprinter 14% | Hacker-Scout 11% | Skirmisher 10% | Hacker-Ninja 8% | Scavenger-Skirmisher Dominant Class ---------------- Mutant | -10/Materials Mutant | -10/Mines Mutant | -10/Exiles Skirmisher | -9/Mines Mutant | -8/Materials Hacker-Sprinter | -7/Factory Hacker-Sprinter | -7/Waste Hacker-Sprinter | -7/Factory Hacker-Scout | -6/Factory Hacker-Scout | -6/Lower Caves Hacker-Scout | -6/Lower Caves Hacker-Scout | -6/Data Miner Hacker-Sprinter | -5/Proximity Caves Hacker-Ninja | -5/Factory Mutant | -5/Upper Caves Resources | -11 -10 -10 -10 -9 -8 -7 -7 -7 -6 -6 -6 -6 -5 -5 -5 ----------- Run | Yrd Mat Min Exi Min Mat Fac Was Fac Fac Low Low Dat Pro Fac Upp Matter Collected 4122 | 162 306 133 . 236 1381 426 156 138 458 209 6 . 20 491 . Remotely . | . . . . . . . . . . . . . . . . Salvage Created 4890 | . 584 52 . 340 1635 552 . 77 331 91 35 . . 1193 . Parts 203 | . 29 1 . 27 91 29 . 1 3 5 . . . 17 . Haulers Intercepted 14 | . 2 . . . 3 2 . . 1 . . . . 6 . Recyclers Shooed . | . . . . . . . . . . . . . . . . Parts Field Recycled . | . . . . . . . . . . . . . . . . Retrieved Matter . | . . . . . . . . . . . . . . . . Parts Self-Destructed 5 | . . . . . . . . . . 5 . . . . . Prevented 1 | . . . . . . . . . . 1 . . . . . Parts Restored . | . . . . . . . . . . . . . . . . Kills | -11 -10 -10 -10 -9 -8 -7 -7 -7 -6 -6 -6 -6 -5 -5 -5 ------- Run | Yrd Mat Min Exi Min Mat Fac Was Fac Fac Low Low Dat Pro Fac Upp Combat Hostiles Destroyed 61 | . 11 2 . 12 31 . . . . 4 . . . 1 . Guns 39 | . 11 2 . 4 22 . . . . . . . . . . AOE 21 | . . . . 8 9 . . . . 4 . . . . . Classes Destroyed 17 | . 4 1 . 4 5 . . 1 . 1 . . . 1 . Worker 8 | . 1 . . 1 3 2 . . 1 . . . . . . Builder 9 | . . . . 1 2 3 . . 1 . . . . 2 . Tunneler 5 | . . . . 2 . . . . 2 . . . . 1 . Hauler 14 | . 2 . . . 3 2 . . 1 . . . . 6 . Recycler 9 | . . . . 1 2 2 . . 1 . . . . 3 . Minesweeper 2 | . . . . . . . . . . 1 1 . . . . Mechanic 1 | . . . . . . . . 1 . . . . . . . Operator 11 | . . . . . 1 6 . 1 . . . . . 3 . Watcher 12 | . 2 . . . 2 1 . 1 3 . . . . 3 . Swarmer 16 | . . . . 4 8 . . . . 4 . . . . . Grunt 31 | . 11 1 . 6 13 . . . . . . . . . . Brawler 1 | . . . . . 1 . . . . . . . . . . Duelist 1 | . . . . . 1 . . . . . . . . . . Sentry 7 | . . . . . 7 . . . . . . . . . . Hunter 1 | . . . . . 1 . . . . . . . . . . Programmer 1 | . . . . . . . . . . . . . . 1 . Assembled 3 | . . 1 . 2 . . . . . . . . . . . Best Kill Streak 10 | . 3 1 . 6 10 3 . 1 2 4 1 . . 4 . Combat Bots Only 8 | . 3 1 . 5 8 . . . . 4 . . . 1 . Max Kills in Single Turn 4 | . 1 1 . 4 2 1 . 1 1 2 1 . . 1 . Gunslinging . | . . . . . . . . . . . . . . . . Exploded 3 | . . . . 3 2 . . . . 2 . . . . . Melee . | . . . . . . . . . . . . . . . . Uniques/NPCs Destroyed . | . . . . . . . . . . . . . . . . Combat | -11 -10 -10 -10 -9 -8 -7 -7 -7 -6 -6 -6 -6 -5 -5 -5 -------- Run | Yrd Mat Min Exi Min Mat Fac Was Fac Fac Low Low Dat Pro Fac Upp Hostile Shots Fired 795 | . 65 12 . 33 212 228 . 15 49 9 15 . 25 123 9 Missed 313 | . 13 3 . 8 57 113 . 9 35 6 11 . 13 43 2 Hits 482 | . 52 9 . 25 155 115 . 6 14 3 4 . 12 80 7 Melee 4 | . . . . . 4 . . . . . . . . . . Projectile 478 | . 52 9 . 25 151 115 . 6 14 3 4 . 12 80 7 Critical Strikes 29 | . . . . . 5 8 . . 1 . . . 1 12 2 Actively Blocked 6 | . . . . . . 2 . . 1 . . . . 3 . Part Disruptions 2 | . . . . . . . . . . . 1 . . 1 . Damage Taken 7154 | . 633 142 . 338 2289 1027 . 198 217 50 105 . 206 1754 195 Core 2051 | . 161 14 . 73 251 336 . 39 40 16 32 . 71 853 165 Absorbed by Shields 70 | . . . . . . 70 . . . . . . . . . Redirected to Shielding 594 | . 54 . . . 45 101 . 84 82 . . . . 228 . Regen/Repaired (Parts) 586 | . . . . . 35 140 . 9 221 . . . . 181 . Core Remaining (%) 56 | 100 . . . . 54 . . 46 . . . . 81 . . Volleys Fired 260 | . 52 9 . 18 141 37 . . . 2 . . 1 . . Largest 2 | . 2 2 . 2 2 1 . . . 1 . . 1 . . Hottest 105 | . 70 40 . 53 105 61 . . . 30 . . 30 . . Shots Fired 410 | . 104 10 . 35 220 37 . . . 2 . . 1 1 . Gun 382 | . 104 10 . 28 203 37 . . . . . . . . . Cannon . | . . . . . . . . . . . . . . . . Launcher 28 | . . . . 7 17 . . . . 2 . . 1 1 . Special . | . . . . . . . . . . . . . . . . Kinetic 224 | . 52 10 . 28 134 . . . . . . . . . . Thermal 121 | . 52 . . . 32 37 . . . . . . . . . Explosive 28 | . . . . 7 17 . . . . 2 . . 1 1 . Electromagnetic 37 | . . . . . 37 . . . . . . . . . . Robot Hit Streak 26 | . 26 7 . 6 15 5 . . . 6 . . . 7 . Robot Miss Streak 5 | . 3 2 . 2 4 5 . . . . . . . . . Penetration Max . | . . . . . . . . . . . . . . . . Secondary Targets 2 | . 1 . . . 1 . . . . . . . . . . Max Gunslinging Chain 1 | . 1 . . . 1 . . . . . . . . . . Shots Hit Robots 322 | . 71 7 . 20 141 34 . 3 11 3 1 . . 31 . Core Hits 169 | . 31 5 . 27 79 13 . 1 1 6 . . . 5 1 Critical Kills 3 | . 1 . . . . 1 . . 1 . . . . . . Critical Parts Destroyed 11 | . 1 . . . 1 1 . . . . . . . 8 . Critical Strikes 19 | . 4 . . . 1 5 . . 1 . . . . 8 . Burn 5 | . 2 . . . . 3 . . . . . . . . . Destroy 3 | . 2 . . . 1 . . . . . . . . . . Smash 11 | . . . . . . 2 . . 1 . . . . 8 . Melee Attacks 240 | . . . . . 5 76 . 16 51 3 7 . 1 81 . Impact 240 | . . . . . 5 76 . 16 51 3 7 . 1 81 . Slashing . | . . . . . . . . . . . . . . . . Piercing . | . . . . . . . . . . . . . . . . Sneak Attacks 31 | . . . . . . 7 . 1 6 1 1 . . 15 . Combat Hostiles . | . . . . . . . . . . . . . . . . Follow-up Attacks . | . . . . . . . . . . . . . . . . Damage Inflicted 10991 | 5 930 105 . 800 2969 1537 . 296 1203 384 74 . . 2674 14 Guns 3834 | . 914 82 . 244 2129 465 . . . . . . . . . Cannons . | . . . . . . . . . . . . . . . . Explosions 1704 | . . . . 556 800 . . . . 263 . . . 85 . Melee 5355 | . . . . . . 1072 . 296 1203 121 74 . . 2589 . Ramming 98 | 5 16 23 . . 40 . . . . . . . . . 14 Kinetic 2230 | . 450 82 . 244 1454 . . . . . . . . . . Thermal 1425 | . 464 . . . 496 465 . . . . . . . . . Explosive 1588 | . . . . 556 684 . . . . 263 . . . 85 . Electromagnetic 295 | . . . . . 295 . . . . . . . . . . Impact 5355 | . . . . . . 1072 . 296 1203 121 74 . . 2589 . Slashing . | . . . . . . . . . . . . . . . . Piercing . | . . . . . . . . . . . . . . . . Highest Corruption 6 | . 2 2 2 2 3 6 6 6 2 2 2 2 2 5 2 Average Corruption 2 | . 1 2 2 2 3 4 6 6 1 2 2 2 2 4 2 Corruption Purged 8 | . . . . . . 3 . . . . . . . 5 . Corruption Blocked . | . . . . . . . . . . . . . . . . Effects 194 | . 17 26 5 17 13 36 2 20 5 2 6 . 10 34 1 Message Errors 52 | . 7 4 2 3 4 11 2 5 1 1 1 . 3 8 . Matter Fused 49 | . 6 5 1 5 5 10 . 6 . . 1 . 1 9 . Heat Flow Errors 28 | . . 6 . 3 2 5 . 2 3 . . . 3 3 1 Energy Discharges 21 | . 1 5 . 2 . 2 . 5 . . 2 . . 4 . Parts Fused 3 | . . . . . . 2 . . . . . . . 1 . Data Loss (minor) 19 | . 1 3 1 2 . 2 . 1 1 1 2 . 3 2 . Data Loss (major) 11 | . 2 1 1 . 1 2 . . . . . . . 4 . Misfires 3 | . . . . 1 1 . . . . . . . . 1 . Alerts 8 | . . 2 . 1 . 2 . 1 . . . . . 2 . Overload Shots . | . . . . . . . . . . . . . . . . Overflow Damage 2865 | . . . . . 7 584 . 79 671 81 54 . 2 1387 . Projectiles . | . . . . . . . . . . . . . . . . Explosions 9 | . . . . . 7 . . . . . . . 2 . . Melee 2856 | . . . . . . 584 . 79 671 81 54 . . 1387 . Knockbacks 19 | . . . . . . 5 . 1 4 1 . . . 8 . Impact 19 | . . . . . . 5 . 1 4 1 . . . 8 . Kinetic . | . . . . . . . . . . . . . . . . Secondary . | . . . . . . . . . . . . . . . . Self-Inflicted Damage 326 | . . . . 58 184 . . . . . . . 31 46 7 Shots 9 | . . . . 2 5 . . . . . . . 1 1 . Rammed 12 | 1 2 2 . . 5 . . . . . . . . . 2 Targets Rammed 15 | 1 3 2 . . 7 . . . . . . . . . 2 Kicked 1 | . . . . . 1 . . . . . . . . . . Crushed 2 | . 1 . . . 1 . . . . . . . . . . Highest Temperature 317 | . 174 275 . 229 288 261 . 168 223 . 203 . 317 298 86 Average Temperature 71 | . 61 99 . 97 61 61 . 84 88 . 109 . 120 138 46 Received Heat Transfer 1889 | . 348 92 . 57 774 106 . 21 57 9 18 . 344 54 9 Effects 1 | . . . . . . . . . . . . . 1 . . Interference 1 | . . . . . . . . . . . . . 1 . . Siege Activations . | . . . . . . . . . . . . . . . . Martial Activations . | . . . . . . . . . . . . . . . . Shielding Activations . | . . . . . . . . . . . . . . . . Robots Disrupted . | . . . . . . . . . . . . . . . . Combat Hostiles . | . . . . . . . . . . . . . . . . Robots Corrupted 24 | . . . . . 1 3 . 1 6 1 1 . . 11 . Combat Hostiles 1 | . . . . . . . . . . . . . . 1 . Parts Fried 54 | . . . . . 3 12 . 3 10 3 2 . . 21 . Impact Corruptions 92 | . . . . . . 23 . 3 21 3 2 . . 40 . Robots Melted . | . . . . . . . . . . . . . . . . Combat Hostiles . | . . . . . . . . . . . . . . . . Parts Melted 2 | . 1 . . . . 1 . . . . . . . . . Heat Transferred 3530 | . 1517 . . . 1014 999 . . . . . . . . . Parts Sabotaged . | . . . . . . . . . . . . . . . . Parts Stolen . | . . . . . . . . . . . . . . . . Parts Stripped . | . . . . . . . . . . . . . . . . Power Chain Reactions 3 | . . . . . 3 . . . . . . . . . . Alert | -11 -10 -10 -10 -9 -8 -7 -7 -7 -6 -6 -6 -6 -5 -5 -5 ------- Run | Yrd Mat Min Exi Min Mat Fac Was Fac Fac Low Low Dat Pro Fac Upp Maximum Alert Level 2 | . . . . . 1 2 . . 1 . . . . 2 . Low Security (%) 69 | 100 100 100 . 100 35 52 100 100 95 . . . . 52 . Level 1 29 | . . . . . 64 46 . . 4 . . . . 42 . Level 2 . | . . . . . . . . . . . . . . 5 . Level 3 . | . . . . . . . . . . . . . . . . Level 4 . | . . . . . . . . . . . . . . . . Level 5 . | . . . . . . . . . . . . . . . . High Security . | . . . . . . . . . . . . . . . . Max Security . | . . . . . . . . . . . . . . . . Peak Influence 450 | . 83 37 . 162 383 403 131 74 272 . . . . 450 . Initial 169 | . . 15 . . 59 169 131 70 1 . . . . . . Average 114 | . 17 2 . 17 194 193 116 20 64 . . . . 180 . Influence Increases 6102 | . 319 66 . 298 1053 1491 . 313 964 140 35 . 15 1378 30 Destroy 0b10 Robot/C 1320 | . 220 40 . 200 620 20 . 60 20 80 . . . 60 . Destroy 0b10 Robot/NC 355 | . 25 . . 25 65 80 . 15 45 5 5 . . 90 . Destroy Leader 322 | . 58 10 . 20 150 16 . 12 18 10 . . . 28 . Allied During Kill 16 | . . 1 . . . 2 . 6 . . . . . 7 . Trap Triggered on 0b10 550 | . . . . . . 120 . 10 130 . . . . 290 . Successful Hack 475 | . 16 . . . 43 117 . 97 119 . . . . 83 . Disable Machine 255 | . . 15 . . 45 . . . 105 . . . . 90 . Destroy Structure 334 | . . . . 53 85 56 . 8 32 . . . . 100 . Partial Spotted 420 | . . . . . . 300 . . 75 . . . . 45 . Lose Combat Pursuer 2055 | . . . . . 45 780 . 105 420 45 30 . 15 585 30 Influence Decreases 5899 | . 279 106 . 145 833 1487 276 410 906 154 68 15 15 1055 150 Entered New Map 772 | . . 25 . . 94 204 246 31 3 24 10 15 . . 120 Time Decay 3315 | . 265 81 . 135 639 650 30 305 482 130 58 . 15 505 20 Search Patrol Dispatched 700 | . . . . . . 300 . . 100 . . . . 300 . Lost Part 354 | . 14 . . 10 100 70 . . . . . . . 150 10 Lost Ally 300 | . . . . . . 100 . 60 40 . . . . 100 . Purge Threat 458 | . . . . . . 163 . 14 281 . . . . . . Squads Dispatched 79 | . 3 . . . 2 26 . 13 14 . . . . 21 . Investigation 40 | . 3 . . . . 17 . 6 5 . . . . 9 . Extermination 21 | . . . . . . 8 . 3 3 . . . . 7 . Reinforcement 9 | . . . . . 2 1 . 2 . . . . . 4 . Assault 4 | . . . . . . . . 2 2 . . . . . . Garrison 5 | . . . . . . . . . 4 . . . . 1 . Intercept . | . . . . . . . . . . . . . . . . Searches Triggered 7 | . . . . . . 3 . . 1 . . . . 3 . Unchained Authorized 2 | . . . . . . . . . 1 . . . . 1 . Data Miner Redirects 1 | . . . . . . . . . . . . . . 1 . Construction Impeded 2 | . . . . . 1 1 . . . . . . . . . Haulers Reinforced . | . . . . . . . . . . . . . . . . Active Scanning Responses . | . . . . . . . . . . . . . . . . Cargo Convoy Interrupts . | . . . . . . . . . . . . . . . . Stealth | -11 -10 -10 -10 -9 -8 -7 -7 -7 -6 -6 -6 -6 -5 -5 -5 --------- Run | Yrd Mat Min Exi Min Mat Fac Was Fac Fac Low Low Dat Pro Fac Upp Distress Signals 18 | . 1 1 . 1 4 8 . 2 1 . . . . . . Communications Jammed . | . . . . . . . . . . . . . . . . Distress Signals . | . . . . . . . . . . . . . . . . Times Spotted 256 | . 18 4 . 12 50 63 . 11 31 6 6 . 2 48 5 Peak Tracking Total 10 | . 4 1 . 4 5 10 . 4 6 4 5 . 1 8 4 Tactical Retreats 75 | . . 2 . 1 2 28 . 3 14 2 2 . 1 19 1 Traps | -11 -10 -10 -10 -9 -8 -7 -7 -7 -6 -6 -6 -6 -5 -5 -5 ------- Run | Yrd Mat Min Exi Min Mat Fac Was Fac Fac Low Low Dat Pro Fac Upp Traps Triggered 19 | . 3 . . . 2 9 . 2 2 . 1 . . . . Indirectly . | . . . . . . . . . . . . . . . . Trap Hack Attempts . | . . . . . . . . . . . . . . . . Triggered . | . . . . . . . . . . . . . . . . Disarmed . | . . . . . . . . . . . . . . . . Reprogrammed . | . . . . . . . . . . . . . . . . Reused 56 | . . . . . . 12 . 1 13 . . . . 30 . Traps Reconfigurated 125 | . . . . . . 19 . 22 21 . . . . 63 . Traps Extracted . | . . . . . . . . . . . . . . . . Installed 3 | . . . . . . . . . . . 3 . . . . Triggered 55 | . . . . . . 12 . 1 13 . . . . 29 . Machines | -11 -10 -10 -10 -9 -8 -7 -7 -7 -6 -6 -6 -6 -5 -5 -5 ---------- Run | Yrd Mat Min Exi Min Mat Fac Was Fac Fac Low Low Dat Pro Fac Upp Machines Disabled 17 | . . 1 . . 3 . . . 7 . . . . 6 . Max in Single Turn 1 | . . 1 . . 1 . . . 1 . . . . 1 . Garrison Access 2 | . . . . . . . . 1 1 . . . . . . Machines Repaired . | . . . . . . . . . . . . . . . . Machines Dismantled . | . . . . . . . . . . . . . . . . Machines Sabotaged . | . . . . . . . . . . . . . . . . Overloaded Fab Kills . | . . . . . . . . . . . . . . . . Hacking | -11 -10 -10 -10 -9 -8 -7 -7 -7 -6 -6 -6 -6 -5 -5 -5 --------- Run | Yrd Mat Min Exi Min Mat Fac Was Fac Fac Low Low Dat Pro Fac Upp Machines Accessed 104 | . 6 . 1 . 10 29 . 15 19 . 2 4 . 18 . Terminals 55 | . 5 . . . 7 18 . 9 9 . 1 . . 6 . Fabricators 15 | . . . . . . 4 . 2 3 . . . . 6 . Repair Stations 11 | . 1 . . . 1 3 . 1 3 . . . . 2 . Recycling Units 1 | . . . . . . 1 . . . . . . . . . Scanalyzers 6 | . . . . . 1 . . 2 2 . . . . 1 . Garrison Access 10 | . . . . . 1 3 . 1 2 . . . . 3 . Total Hacks 427 | . 26 . 1 . 37 122 . 61 88 . 2 29 . 61 . Successful 266 | . 12 . 1 . 20 68 . 29 62 . 2 29 . 43 . Failed 161 | . 14 . . . 17 54 . 32 26 . . . . 18 . Catastrophic 23 | . 1 . . . 2 13 . 5 . . . . . 2 . Database Lockouts . | . . . . . . . . . . . . . . . . Manual 242 | . 22 . 1 . 26 82 . 40 45 . . . . 26 . Terminals 237 | . 22 . . . 25 86 . 37 44 . 1 . . 22 . Fabricators 37 | . . . . . . 9 . 4 9 . . . . 15 . Repair Stations 56 | . 4 . . . 2 9 . 5 23 . . . . 13 . Recycling Units 11 | . . . . . . 11 . . . . . . . . . Scanalyzers 29 | . . . . . 7 . . 12 7 . . . . 3 . Garrison Access 26 | . . . . . 3 7 . 3 5 . . . . 8 . Terminal Hacks 84 | . 2 . 1 . . 18 . 8 17 . 2 29 . 7 . Record 16 | . . . 1 . . . . 1 . . 1 11 . 2 . Part Schematic 14 | . . . . . . 4 . . 1 . . 9 . . . Robot Schematic 9 | . . . . . . . . . 3 . . 6 . . . Prototype ID Bank 3 | . . . . . . . . . . . . 3 . . . Open Door 1 | . . . . . . . . . . . 1 . . . . Level Access Points 2 | . . . . . . 1 . 1 . . . . . . . Branch Access Points 1 | . . . . . . . . . 1 . . . . . . Terminal Index 4 | . . . . . . 1 . 1 1 . . . . 1 . Fabricator Index 3 | . . . . . . 1 . . 1 . . . . 1 . Repair Station Index 1 | . . . . . . . . 1 . . . . . . . Scanalyzer Index 4 | . . . . . . 1 . 1 2 . . . . . . Unreport Threat 8 | . . . . . . 3 . 2 3 . . . . . . Locate Traps 4 | . . . . . . 2 . 1 1 . . . . . . Recall Investigation 6 | . 1 . . . . 3 . . 1 . . . . 1 . Recall Extermination 5 | . . . . . . 2 . . 2 . . . . 1 . Zone Layout 3 | . 1 . . . . . . . 1 . . . . 1 . Fabricator Hacks 29 | . . . . . . 8 . 4 5 . . . . 12 . Load Schematic 15 | . . . . . . 4 . 2 3 . . . . 6 . Build 14 | . . . . . . 4 . 2 2 . . . . 6 . Repair Station Hacks 37 | . 1 . . . 2 6 . 2 17 . . . . 9 . Scan Component 18 | . . . . . 1 3 . 1 8 . . . . 5 . Repair 17 | . . . . . 1 3 . 1 8 . . . . 4 . Refit 2 | . 1 . . . . . . . 1 . . . . . . Recycling Unit Hacks 11 | . . . . . . 11 . . . . . . . . . Process 9 | . . . . . . 9 . . . . . . . . . Retrieve Components 2 | . . . . . . 2 . . . . . . . . . Scanalyzer 22 | . . . . . 7 . . 5 7 . . . . 3 . Insert Component 8 | . . . . . 3 . . 1 3 . . . . 1 . Analyze 8 | . . . . . 3 . . 1 3 . . . . 1 . Retrieve Study 6 | . . . . . 1 . . 3 1 . . . . 1 . Garrison Access Hacks 1 | . . . . . 1 . . . . . . . . . . Coupler Status 1 | . . . . . 1 . . . . . . . . . . Unauthorized Hacks 82 | . 9 . . . 10 25 . 10 16 . . . . 12 . Terminals 62 | . 8 . . . 10 18 . 8 12 . . . . 6 . Botnet 52 | . 5 . . . 7 17 . 8 9 . . . . 6 . Disrupt 6 | . 2 . . . 2 . . . 2 . . . . . . Operators 4 | . 1 . . . 1 1 . . 1 . . . . . . Fabricators 1 | . . . . . . . . . 1 . . . . . . Fabnet 1 | . . . . . . . . . 1 . . . . . . Repair Stations 2 | . 1 . . . . 1 . . . . . . . . . Mechanics 2 | . 1 . . . . 1 . . . . . . . . . Recycling Units . | . . . . . . . . . . . . . . . . Scanalyzers . | . . . . . . . . . . . . . . . . Garrison Access 17 | . . . . . . 6 . 2 3 . . . . 6 . Broadcast 7 | . . . . . . 2 . 1 1 . . . . 3 . Redirect 1 | . . . . . . 1 . . . . . . . . . Reprogram 9 | . . . . . . 3 . 1 2 . . . . 3 . Data Cores Recovered 3 | . . . . . . 1 . . . . . . . 2 . Used . | . . . . . . . . . . . . . . . . Hacking Detections 87 | . 6 . . . 10 24 . 15 14 . 1 . . 17 . Full Trace Events 28 | . 2 . . . . 13 . 4 3 . . . . 6 . Feedback Events 2 | . . . . . . 2 . . . . . . . . . Corruption 1 | . . . . . . 1 . . . . . . . . . Hackware Fried 1 | . . . . . . 1 . . . . . . . . . Feedback Blocked 1 | . . . . . . 1 . . . . . . . . . Robot Schematics Acquired 9 | . . . . . . . . . 3 . . 6 . . . Robots Built . | . . . . . . . . . . . . . . . . Authchips . | . . . . . . . . . . . . . . . . Time 38 | . . . . . . . . . . . . . . 38 . Total Robot Build Rating . | . . . . . . . . . . . . . . . . Part Schematics Acquired 22 | . . . . . 3 4 . 1 4 . . 9 . 1 . Parts Built 14 | . . . . . . 4 . 2 3 . . . . 5 . Authchips . | . . . . . . . . . . . . . . . . Time 916 | . . . . . . 273 . 84 165 . . . . 394 . Total Part Build Rating 56 | . . . . . . 14 . 8 14 . . . . 20 . Part Studies Acquired 5 | . . . . . . . . 3 1 . . . . 1 . Parts Repaired 17 | . . . . . 1 3 . 1 8 . . . . 4 . Time 525 | . . . . . 60 79 . 56 197 . . . . 133 . Parts Recycled . | . . . . . . . . . . . . . . . . Recycled Matter . | . . . . . . . . . . . . . . . . Retrieved Matter . | . . . . . . . . . . . . . . . . Retrieved Components 6 | . . . . . . 6 . . . . . . . . . Parts Scanalyzed 8 | . . . . . 3 . . 1 3 . . . . 1 . Part Schematics Acquired 8 | . . . . . 3 . . 1 3 . . . . 1 . Parts Damaged 1 | . . . . . 1 . . . . . . . . . . Bothacking | -11 -10 -10 -10 -9 -8 -7 -7 -7 -6 -6 -6 -6 -5 -5 -5 ------------ Run | Yrd Mat Min Exi Min Mat Fac Was Fac Fac Low Low Dat Pro Fac Upp Used RIF Installer . | . . . . . . . . . . . . . . . . Robots Hacked 1 | . . . . . . . . . . . . . . 1 . Non-combat . | . . . . . . . . . . . . . . . . Combat 1 | . . . . . . . . . . . . . . 1 . Robot Hacks Applied . | . . . . . . . . . . . . . . . . Relay Couplers Released 3 | . . . . . . . . 3 . . . . . . . Machine Destruction 3 | . . . . . . . . 3 . . . . . . . Fabnet Peak Effective % 3 | . . . . . . . . . . . . . 3 3 3 Autooverrided 1 | . . . . . . . . . . . . . . 1 . Robots Rewired . | . . . . . . . . . . . . . . . . Allies Hacked . | . . . . . . . . . . . . . . . . Hacks Repelled . | . . . . . . . . . . . . . . . . Allies | -11 -10 -10 -10 -9 -8 -7 -7 -7 -6 -6 -6 -6 -5 -5 -5 -------- Run | Yrd Mat Min Exi Min Mat Fac Was Fac Fac Low Low Dat Pro Fac Upp Total Allies 23 | . . 2 . . . 6 . 7 2 . . . . 6 . Largest Group 4 | . . 2 1 . . 3 . 4 1 . . . . 2 . Highest-Rated Group 82 | . . 49 31 . . 48 . 62 37 . . . . 82 . Highest-Rated Ally 41 | . . 31 31 . . 27 . 20 37 . . . . 41 . Total Orders . | . . . . . . . . . . . . . . . . Ally Attacks 81 | . . 12 . . . 13 . 25 7 . . . . 24 . Total Damage 1243 | . . 128 . . . 141 . 257 201 . . . . 516 . Kills 8 | . . 1 . . . 1 . 3 1 . . . . 2 . Allies Corrupted 1 | . . . . . . 1 . . . . . . . . . Allies Melted . | . . . . . . . . . . . . . . . . Intel | -11 -10 -10 -10 -9 -8 -7 -7 -7 -6 -6 -6 -6 -5 -5 -5 ------- Run | Yrd Mat Min Exi Min Mat Fac Was Fac Fac Low Low Dat Pro Fac Upp Active Infowar (turns) 12688 | . . 1357 353 1949 2538 217 . 789 1840 265 518 28 741 2071 22 Sensors 895 | . . . . . . . . . . 258 518 28 62 7 22 Terrain 9675 | . . . . 1949 2538 217 . 38 1430 262 429 28 741 2043 . Traps 917 | . . . . . . . . 751 166 . . . . . . Seismic 1710 | . . 1357 353 . . . . . . . . . . . . Triangulation 244 | . . . . . . . . . 244 . . . . . . Cloaking 1386 | . . . . . . . . . 388 3 . . . 995 . Jamming 15 | . . . . . . . . . . . . . . 15 . Robot Analysis Total . | . . . . . . . . . . . . . . . . Derelict Logs Recovered 3 | . . . . 1 . . . . . 1 . . 1 . . Drone Launches . | . . . . . . . . . . . . . . . . Drone Recoveries . | . . . . . . . . . . . . . . . . Exploration | -11 -10 -10 -10 -9 -8 -7 -7 -7 -6 -6 -6 -6 -5 -5 -5 ------------- Run | Yrd Mat Min Exi Min Mat Fac Was Fac Fac Low Low Dat Pro Fac Upp Turns Passed 18817 | 82 1464 1396 675 1956 4112 2397 75 833 1869 265 518 28 774 2332 41 Spaces Moved 17702 | 44 530 409 211 415 1119 4321 246 1923 2740 582 798 91 690 3509 74 Core 133 | 17 . . . . . . . 1 . . . . . 41 74 Treads 1819 | 27 530 409 211 415 227 . . . . . . . . . . Legs 668 | . . . . . 663 5 . . . . . . . . . Wheels 229 | . . . . . 229 . . . . . . . . . . Hover . | . . . . . . . . . . . . . . . . Flight 14853 | . . . . . . 4316 246 1922 2740 582 798 91 690 3468 . Fastest Speed 14 | 50 160 320 320 320 140 26 26 26 26 26 26 26 26 14 50 Average Speed 61 | 157 235 320 320 325 196 26 26 26 26 26 26 26 27 29 50 Slowest Speed 560 | 250 320 320 320 480 560 270 26 250 29 26 26 26 29 200 50 Overloaded Moves 45 | . . . . . . . . . . . . . . 45 . Propulsion Burnouts . | . . . . . . . . . . . . . . . . Robots Hopped 101 | . . . . . . 36 . 18 26 . . . . 21 . Potential Cave-ins . | . . . . . . . . . . . . . . . . Cave-ins Triggered . | . . . . . . . . . . . . . . . . Exploration Rate (%) 63 | 4 81 92 60 69 77 81 94 40 56 67 79 68 72 66 12 Regions Visited 15 Branch Regions 8 Pre-discovered Areas 2 | . . . 1 . . . . . . . . 1 . . . Known Exits Taken 8 | . . . . . 1 . . 1 1 1 1 1 1 1 . Unknown Exits Taken 5 | 1 1 1 1 1 . . . . . . . . . . . Scrap Searched 8 | . . 2 . 2 . . . . . 1 1 . 2 . . Spaces Dug 163 | . . . . . 5 56 . 8 32 2 6 . 13 41 . Terrain Destroyed 330 | . . . . 59 87 56 . 8 32 20 6 . 13 49 . Melee 151 | . . . . . 5 56 . 8 32 2 6 . 1 41 . Projectile . | . . . . . . . . . . . . . . . . AOE 178 | . . . . 59 81 . . . . 18 . . 12 8 . Terrain Rammed . | . . . . . . . . . . . . . . . . Walls Destroyed . | . . . . . . . . . . . . . . . . Machines Disabled . | . . . . . . . . . . . . . . . . Actions | -11 -10 -10 -10 -9 -8 -7 -7 -7 -6 -6 -6 -6 -5 -5 -5 --------- Run | Yrd Mat Min Exi Min Mat Fac Was Fac Fac Low Low Dat Pro Fac Upp Total 24653 | 53 639 483 214 988 2805 5388 254 2199 3769 685 1096 94 1267 4642 77 Wait 6031 | . 35 52 . 545 1414 858 1 235 930 94 285 . 574 1007 1 Move 17499 | 43 529 408 210 414 1118 4251 245 1894 2688 581 797 90 689 3468 74 Hop 88 | . . . . . . 34 . 10 25 . . . . 19 . Pick Up 94 | 3 9 8 . 4 26 12 1 7 10 . 2 . 1 11 . Fast Attach 54 | 6 1 . . . 13 9 1 2 8 . . 2 . 12 . Attach 39 | . 1 2 . 4 11 9 . 1 2 . . . 1 7 1 Detach 7 | . . . 3 . . . . 1 . . . . . 3 . Swap 179 | . 5 2 1 3 48 29 4 27 28 5 . . . 27 . Drop 74 | . 4 . . . 22 17 2 6 12 . 2 2 . 7 . Fire 260 | . 52 9 . 18 141 37 . . . 2 . . 1 . . Melee 240 | . . . . . 5 76 . 16 51 3 7 . 1 81 . Ram 5 | . . . . . 4 . . . . . . . . . 1 Kick 1 | . . . . . 1 . . . . . . . . . . Crush 8 | 1 3 2 . . 2 . . . . . . . . . . Escape Stasis 71 | . . . . . . 56 . . 15 . . . . . . Rewire . | . . . . . . . . . . . . . . . . Trap 3 | . . . . . . . . . . . 3 . . . . Miscellaneous . | . . . . . . . . . . . . . . . . Route ------- -11/Scrapyard -10/Materials (discovered 3 exits: [*Mat x2] / [*Min]) -10/Mines (discovered 4 exits: [*Mat x2] / *Exi / [*Sub]) -10/Exiles (discovered 2 exits: [*Min x2]) -9/Mines -8/Materials (discovered 3 exits: *Fac x3) -7/Factory (discovered 8 exits: *Fac x4 / [*Sto x2] / [*Low x2]) -7/Waste -7/Factory (discovered 5 exits: *Fac x4 / [*Low]) -6/Factory (discovered 8 exits: *Fac x4 / *Low x2 / *Ext x2) -6/Lower Caves -6/Lower Caves (discovered 2 exits: *Fac / *Dat) -6/Data Miner -5/Proximity Caves -5/Factory (discovered 4 exits: *Fac x2 / *Upp x2) -5/Upper Caves History --------- Turn | Location | Event 31 | -11/Scrapyard | Discovered new exit (range 15) 83 | -11/Scrapyard | Entered Materials 98 | -10/Materials | Discovered new exit (range 15) 307 | -10/Materials | Build established: Mutant 332 | -10/Materials | Discovered new exit (range 3) 878 | -10/Materials | Core integrity fell below 50% 1040 | -10/Materials | Discovered new exit (range 3) 1547 | -10/Materials | Entered Mines 1548 | -10/Mines | Assembled infested the area 1892 | -10/Mines | Discovered new exit (range 6) 1943 | -10/Mines | Discovered new exit (range 2) 2087 | -10/Mines | Found a Scrap Suit stashed away for nefarious purposes 2093 | -10/Mines | Found Scrap Suit 2175 | -10/Mines | A weapon hastily lodged in a ceiling crevice suddenly fell to the ground 2460 | -10/Mines | Found a hidden stash of uninstalled traps 2614 | -10/Mines | Discovered new exit (range 13) 2927 | -10/Mines | Deemed a non-threat by the Exiles lab entrance 2931 | -10/Mines | Discovered new exit (range 5) 2943 | -10/Mines | Entered Exiles 2943 | -10/Exiles | Accompanied by 1 ally 2973 | -10/Exiles | Led the pair of lost Derelicts to a safe place 2996 | -10/Exiles | Discovered new exit (range 15) 3031 | -10/Exiles | Met 8R-AWN 3079 | -10/Exiles | Met EX-HEX 3162 | -10/Exiles | Met EX-BIN 3200 | -10/Exiles | Aligned with FarCom system 3204 | -10/Exiles | Given EX-Vault access code 3277 | -10/Exiles | Opened EX-Vault 3296 | -10/Exiles | Found Prototype Device 3296 | -10/Exiles | Identified Trap Reconfigurator 3366 | -10/Exiles | Warned to stay clear of 0b10 Research branches 3474 | -10/Exiles | Met EX-DEC 3494 | -10/Exiles | Learned location of Zion (-7) 3583 | -10/Exiles | Discovered new exit (range 14) 3618 | -10/Exiles | Left Exiles lab with Trap Reconfigurator 3618 | -10/Exiles | Entered Mines 3774 | -9/Mines | Learned location of 1 exit from Materials 4322 | -9/Mines | Core integrity fell below 20% 4460 | -9/Mines | Received a Rocket Launcher from a helpful Derelict 4614 | -9/Mines | Build established: Skirmisher 4799 | -9/Mines | Excavation squad dispatched 4799 | -9/Mines | A large section of the Mines collapsed 5049 | -9/Mines | Excavation squad dispatched 5559 | -9/Mines | Discovered new exit (range 4) 5574 | -9/Mines | Entered Materials 5574 | -8/Materials | Evolved 4 slots: Propulsion x2, Utility x2 5575 | -8/Materials | Identified exit to Factory 5829 | -8/Materials | Lost 5 parts (1p1n3w) 6173 | -8/Materials | Build established: Scavenger-Skirmisher 6234 | -8/Materials | Discovered exit to Factory (range 16) 6877 | -8/Materials | Discovered exit to Factory (range 13) 7065 | -8/Materials | Destroyed 8 combat bots 7761 | -8/Materials | Build established: Mutant 8525 | -8/Materials | Build established: Skirmisher 8655 | -8/Materials | Repaired Adv. Beam Rifle? 9217 | -8/Materials | Build established: Mutant 9686 | -8/Materials | Entered Factory 9686 | -7/Factory | Evolved 2 slots: Utility x2 9747 | -7/Factory | Discovered new exit (range 7) 9973 | -7/Factory | Lost 3 parts (1p1u1w) 10272 | -7/Factory | Build established: Hacker-Sprinter 10280 | -7/Factory | Discovered new exit (range 8) 10499 | -7/Factory | Fabricated Hacking Suite? 10563 | -7/Factory | Discovered new exit (range 13) 10859 | -7/Factory | Identified exit to Factory 10886 | -7/Factory | Search patrols dispatched 11033 | -7/Factory | Fabricated Cld. VTOL Module? 11286 | -7/Factory | Search patrols dispatched 11291 | -7/Factory | Repaired Mic. Nuclear Core 11310 | -7/Factory | Repaired Hvy. Flail 11343 | -7/Factory | Discovered new exit (range 15) 11348 | -7/Factory | Hacking Suite fried by hacking feedback 11393 | -7/Factory | Fabricated Hacking Suite? 11493 | -7/Factory | Fabricated Cld. VTOL Module? 11686 | -7/Factory | Search patrols dispatched 11944 | -7/Factory | Repaired Imp. Propulsion Shielding 12083 | -7/Factory | Sucked down chute 12083 | -7/Factory | Entered Waste 12083 | -7/Waste | The area was eerily silent 12152 | -7/Waste | Discovered new exit (range 12) 12158 | -7/Waste | Entered Factory 12223 | -7/Factory | Repaired Adv. Hacking Suite 12246 | -7/Factory | Discovered new exit (range 8) 12247 | -7/Factory | Core integrity fell below 50% 12766 | -7/Factory | Fabricated Adv. Hacking Suite? 12929 | -7/Factory | Fabricated Mni. Grenade Launcher? 12991 | -7/Factory | Entered another Factory area 12991 | -6/Factory | Evolved 2 slots: Utility x2 13073 | -6/Factory | Discovered new exit (range 15) 13100 | -6/Factory | Repaired Imp. Propulsion Shielding 13509 | -6/Factory | Discovered new exit (range 7) 13536 | -6/Factory | Spotted B-75 Beast 13550 | -6/Factory | Discovered new exit (range 12) 13557 | -6/Factory | Identified exit to Lower Caves 13557 | -6/Factory | Identified exit to Extension 13629 | -6/Factory | Discovered new exit (range 9) 13731 | -6/Factory | Build established: Hacker-Scout 14141 | -6/Factory | Fabricated Cld. VTOL Module? 14162 | -6/Factory | Repaired Surge Thruster+ 14199 | -6/Factory | Repaired Cld. VTOL Module 14217 | -6/Factory | Repaired Mni. Grenade Launcher+ 14238 | -6/Factory | Repaired Imp. Propulsion Shielding 14277 | -6/Factory | Repaired Cld. VTOL Module 14292 | -6/Factory | Garrison activated, responded to threat 14435 | -6/Factory | Garrison activated, responded to threat 14437 | -6/Factory | Build established: Hacker-Ninja 14476 | -6/Factory | Repaired Imp. Utility Shielding 14512 | -6/Factory | Repaired Impact Mace 14712 | -6/Factory | Unchained authorized (QV-33N) 14741 | -6/Factory | Search patrols dispatched 14747 | -6/Factory | Fabricated Adv. Sensor Array? 14752 | -6/Factory | Exiles provided nearest exit location to -5/Factory 14860 | -6/Factory | Entered Lower Caves 15116 | -6/Lower Caves | Learned location of 1 exit from Factory 15123 | -6/Lower Caves | Discovered new exit (range 8) 15125 | -6/Lower Caves | Identified exit to Lower Caves 15125 | -6/Lower Caves | Entered another Lower Caves area 15125 | -6/Lower Caves | Discovered exit to Factory (range 12) 15167 | -6/Lower Caves | Build established: Hacker-Scout 15260 | -6/Lower Caves | Attracted the attention of an 0b10 checkpoint 15556 | -6/Lower Caves | Spotted B-75 Beast 15641 | -6/Lower Caves | Discovered new exit (range 8) 15643 | -6/Lower Caves | Identified exit to Data Miner 15643 | -6/Lower Caves | Entered Data Miner 15643 | -6/Data Miner | Discovered new exit (range 6) 15649 | -6/Data Miner | Met Data Miner 15654 | -6/Data Miner | Learned location of Section 7 (-3) 15654 | -6/Data Miner | Acquired the access code to Warlord's prototype stash 15660 | -6/Data Miner | Received God Mode back door access code from Data Miner 15671 | -6/Data Miner | Identified exit to Proximity Caves 15671 | -6/Data Miner | Entered Proximity Caves 15675 | -5/Proximity Caves | Learned Factory trap positions 15730 | -5/Proximity Caves | Spotted B-75 Beast 16031 | -5/Proximity Caves | Build established: Hacker-Sprinter 16425 | -5/Proximity Caves | Discovered exit to Factory (range 19) 16445 | -5/Proximity Caves | Entered Factory 16445 | -5/Factory | Evolved 2 slots: Propulsion x1, Utility x1 16446 | -5/Factory | Identified exit to Upper Caves 16447 | -5/Factory | Loaded intel: 125 trap records 16496 | -5/Factory | Repaired Broken Cld. VTOL Module 16790 | -5/Factory | Build established: Hacker-Ninja 17103 | -5/Factory | Discovered exit to Upper Caves (range 17) 17431 | -5/Factory | Repaired Impact Mace 17446 | -5/Factory | Fabricated Cld. VTOL Module? 17451 | -5/Factory | Repaired Imp. Propulsion Shielding? 17503 | -5/Factory | Repaired Cld. VTOL Module 17661 | -5/Factory | Fabricated Mni. Grenade Launcher? 17669 | -5/Factory | Fabricated Adv. Sensor Array? 17785 | -5/Factory | Fabricated O-24 Administrator? 17902 | -5/Factory | Fabricated Cld. VTOL Module? 17945 | -5/Factory | Search patrols dispatched 18193 | -5/Factory | Garrison activated, responded to threat 18219 | -5/Factory | Build established: Hacker-Scout 18245 | -5/Factory | Search patrols dispatched 18317 | -5/Factory | Unchained authorized (6S-H0T) 18357 | -5/Factory | Exiles provided nearest exit location to -4/Factory 18504 | -5/Factory | Discovered exit to Factory (range 16) 18545 | -5/Factory | Search patrols dispatched 18560 | -5/Factory | Lost 7 parts (1p2n3u1w) 18661 | -5/Factory | Incoming investigation squad redirected 18711 | -5/Factory | Core integrity fell below 50% 18773 | -5/Factory | Core integrity fell below 20% 18777 | -5/Factory | Entered Upper Caves 18814 | -5/Upper Caves | Lost 6 parts (1p2n3u) 18818 | -5/Upper Caves | Core destroyed Last Messages --------------- Acquired Imp. Terrain Scanner. >> BROADCAST: Garrison Access F003 dispatching Reinforcement squad: 2x H-66 Slayer. ALERT: Hostiles spotted, dispatching reinforcements to Terminal F009. Cld. VTOL Module destroyed. Imp. System Shield destroyed. Critical hit (Blast). 6S-H0T reloads Prototype Ballistic Gun with 6S-H0T's SS Cartridge. LOCATION=UPPER CAVES GOAL=ESCAPE C-30 ARC bursts open, deploying its payload. P-70 Sage unfolds itself. Adv. Hacking Suite destroyed. M-22 Extractor reprogrammed Fire Trap. D7-FUW(k) breaks down the debris. System corrupted: Heat flow error (+126). Slammed into P-70 Sage. Destabilizing: Core damaged (-50). Map ----- +----------------------------------------------------+ | ???????????????????????? #??????? ##????????? | | ????????????????????????? ##?????? ##???????? | | ????????????????????????? ###???? #???????? | | ?????????????????????????? ##???# ##??????? | | ?????????????????###??????# % #???#" #??????? | | ?????????????????# ######## #??##%" #??????? | | ?????????????????# ## #?## " #???????? | | ????????????###### ### #???????? | | ???????????## # #### ##???????? | | ???????????# ## #??# #????????? | | ????????# ## ## ### #??# #????????? | | ????????# ##########?# #### #????????? | | ????????# ##?????????# ## #????????? | | ???????# ### #?????????# ##????????? | | ??????# ??## #?????????# ###?????????? | | ??????# ???# #?????????## ? ###???????????? | | ????? #????# #??????????## ####??????????? | | ???# ??????### #???????????## # ####???????? | | ????# ?????????# ########?????### # #???????? | | ????#???????????# #?????###pg #???????? | | ????????????????######## #????## #^ #????????? | | ???????????????????????# #???## #????????? | | ???????????????????????# #####^ ##????????? | | ???????????????????????# ## #?????????? | | ??????????????########## # #?????????? | | ?????????# p@ ##?????????? | | ????????? m ##??????????? | | ????????????############### #???????????? | | ??????????????????????????## ####????????? | | ???????????????????????????## ##???????? | | ????????????????????????????###### #???????? | | ?????????????????????????????????#########???????? | | ?????????????????????????????????????????????????? | | ?????????????????????????????????????????????????? | | ?????????????????????????????????????????????????? | | ?????????????????????????????????????????????????? | | ?????????????????????????????????????????????????? | | ?????????????????????????????????????????????????? | | ?????????????????????????????????????????????????? | | ?????????????????????????????????????????????????? | | ?????????????????????????????????????????????????? | | ?????????????????????????????????????????????????? | | ?????????????????????????????????????????????????? | | ?????????????????????????????????????????????????? | | ?????????????????????????????????????????????????? | | ?????????????????????????????????????????????????? | | ?????????????????????????????????????????????????? | | | | | | | +----------------------------------------------------+ Best States ------------- Heat Dissipation 40 Energy Generation 16 Energy Capacity 265 Matter Stores 300 Matter Capacity 300 Sight Range 16 Robot Scan Range 16 Terrain Scan Range 20 Terrain Scan Density 210 Jamming Range 14 Cloak Strength 2 EM Shielding 3 Armor Coverage 525 Propulsion Shielding 66 Utility Shielding 66 Evasion (%) 64 Recoil Reduction 4 Salvage Targeting 4 Offensive Hacking 38 Defensive Hacking 26 Item Schematics ----------------- Mni. Grenade Launcher | -8/Materials | Scanalyzed Imp. Propulsion Shielding | -8/Materials | Scanalyzed Imp. VTOL Module | -8/Materials | Scanalyzed Hacking Suite | -7/Factory | Hacked System Shield | -7/Factory | Hacked Mic. Nuclear Core | -7/Factory | Hacked Cld. VTOL Module | -7/Factory | Hacked Adv. Hacking Suite | -7/Factory | Scanalyzed Imp. System Shield | -6/Factory | Scanalyzed Cloaking Device | -6/Factory | Scanalyzed Adv. Sensor Array | -6/Factory | Hacked Imp. Signal Interpreter | -6/Factory | Scanalyzed Combat Drone Bay | -6/Data Miner | Free Lgt. Regenerative Plating | -6/Data Miner | Free Enh. Flexi-carbon Leg | -6/Data Miner | Free Prc. Matter Filter | -6/Data Miner | Free Hvy. Gatling Laser | -6/Data Miner | Free Shield Leg | -6/Data Miner | Free Imp. Phase Shifter | -6/Data Miner | Free Hardcell Cannon | -6/Data Miner | Free Com. HERF Cannon | -6/Data Miner | Free Mic. Fission Core | -5/Factory | Scanalyzed Robot Schematics ------------------ O-24 Administrator | -6/Factory | Hacked E-15 Imp | -6/Factory | Hacked M-22 Extractor | -6/Factory | Hacked A-15 Conveyor | -6/Data Miner | Free P-70 Sage | -6/Data Miner | Free B-60 Warrior | -6/Data Miner | Free L-41 Fighter | -6/Data Miner | Free M-30 Cleanser | -6/Data Miner | Free G-67 Veteran | -6/Data Miner | Free Fabricated ------------ Hacking Suite | x1 | -7/Factory Cld. VTOL Module | x1 | -7/Factory Hacking Suite | x1 | -7/Factory Cld. VTOL Module | x1 | -7/Factory Adv. Hacking Suite | x1 | -7/Factory Mni. Grenade Launcher | x1 | -7/Factory Cld. VTOL Module | x1 | -6/Factory Adv. Sensor Array | x2 | -6/Factory Cld. VTOL Module | x1 | -5/Factory Mni. Grenade Launcher | x1 | -5/Factory Adv. Sensor Array | x2 | -5/Factory Cld. VTOL Module | x1 | -5/Factory Repaired ---------- Adv. Beam Rifle | 68% | -8/Materials Hvy. Flail | 23% | -7/Factory Imp. Propulsion Shielding | 60% | -7/Factory Adv. Hacking Suite | 10% | -7/Factory Imp. Propulsion Shielding | 16% | -6/Factory Surge Thruster | 41% | -6/Factory Cld. VTOL Module | 68% | -6/Factory Mni. Grenade Launcher | 60% | -6/Factory Imp. Propulsion Shielding | 80% | -6/Factory Cld. VTOL Module | 85% | -6/Factory Imp. Utility Shielding | 86% | -6/Factory Impact Mace | 90% | -6/Factory Cld. VTOL Module | 25% | -5/Factory | Broken Impact Mace | 54% | -5/Factory Imp. Propulsion Shielding | 49% | -5/Factory Cld. VTOL Module | 65% | -5/Factory Studied --------- Mic. Nuclear Core | -7/Factory | Hacked Hvy. Flail | -7/Factory | Hacked Surge Thruster | -7/Factory | Hacked Mni. Grenade Launcher | -6/Factory | Hacked Mic. Fission Core | -5/Factory | Hacked Alien Tech Used ----------------- None Achievements -------------- Cya! Guerrilla Style Omniscient Cartographer Production Line Slippery One Suspicious By Nature Challenges ------------ None Game ------ Seed VisualMetafieldComputer Manual? 0 Play Time 03:28:52 Cumulative 18.1 hours Start 2026.01.10 @ 21:20:50 End 2026.01.11 @ 01:15:46 Sessions 1 Manual Loads 0 Difficulty Rogue Special Mode None Game No. 23 Rogue 23 Adventurer 0 Explorer 0 Win Type - Total 0 Types 0/0/0/0/0/0/0/0/0/0 Lore% 9 Gallery% 23 Achievement% 24 Wizard Run 0 Options --------- Layout 1 ASCII 0 Keyboard 1 Movement Vi Keybinds 0 Fullscreen 1 Font 24/Smallcaps Map View 50x35 Zoom Use 0% Tactical HUD 0 Map Filters NONE Filters NONE Steam 1 RUN: cac92558-9bcf-4d18-a3b8-a0c462fd9091